bitfinex/quotes_BTCUSD_20220306
["timestamp","ask_amount","ask_price","bid_price","bid_amount"]
[1646588992377,0.385227,38990.0,38989.0,0.1949784]
[1646588992576,0.06439856,38994.0,38989.0,0.1949784]
[1646588992577,0.04939856,38994.0,38989.0,0.1949784]
[1646588992776,0.385227,38993.0,38989.0,0.1949784]
[1646588992976,0.049167,38994.0,38989.0,0.1949784]
[1646588993178,0.1,38992.0,38989.0,0.1949784]
[1646588993377,0.04939856,38994.0,38989.0,0.1949784]
[1646588993582,0.385227,38993.0,38989.0,0.1949784]
[1646588993780,0.1,38992.0,38989.0,0.1949784]
[1646588995037,0.00021531,38994.0,38989.0,0.1949784]
[1646588995436,0.064167,38995.0,38989.0,0.1949784]
[1646588995437,0.12833408,38995.0,38989.0,0.1949784]
[1646588995639,0.385227,38992.0,38986.0,0.00021536]
[1646588995838,0.385227,38990.0,38986.0,0.00021536]
[1646588996240,0.1,38991.0,38986.0,0.00021536]
[1646588996637,0.1,38991.0,38983.0,6e-05]
[1646588996838,0.1,38991.0,38987.0,0.16844759]
[1646588997048,0.385227,38991.0,38987.0,0.16344759]
[1646588997238,0.1,38992.0,38987.0,0.16344759]
[1646588997239,0.1,38990.0,38987.0,0.16344759]
[1646588998481,0.00021046,38994.0,38987.0,0.16344759]
[1646588998985,0.1,38995.0,38987.0,0.16344759]
[1646588999382,0.00021155,38994.0,38987.0,0.16344759]
[1646589000184,0.1,38995.0,38987.0,0.16344759]
[1646589000583,0.00021155,38994.0,38987.0,0.16344759]
[1646589000984,0.00021155,38994.0,38988.0,0.028054]
[1646589001385,0.2128,39000.0,38988.0,0.028054]
[1646589001689,0.2128,39000.0,38987.0,0.02546]
[1646589001690,0.0002007,38994.0,38987.0,0.02546]
[1646589001924,0.0002007,38994.0,38989.0,0.33170544]
[1646589002125,0.0002007,38994.0,38990.0,0.028048]
[1646589002725,0.1128,39000.0,38990.0,0.028048]
[1646589002925,0.1128,39000.0,38997.0,0.17489233]
[1646589003126,0.1,39002.0,38997.0,0.17489233]
[1646589003328,0.385227,39001.0,38997.0,0.17489233]
[1646589003727,0.385227,38999.0,38997.0,0.17489233]
[1646589004129,0.485227,38998.0,38997.0,0.17489233]
[1646589004729,0.1,38998.0,38997.0,0.17489233]
[1646589004930,0.00020077,39001.0,38997.0,0.17489233]
[1646589005132,0.385227,39004.0,38997.0,0.17489233]
[1646589005329,0.385227,39002.0,38997.0,0.17489233]
[1646589005575,0.0002015,38999.0,38997.0,0.17489233]
[1646589006277,0.364147,39007.0,38997.0,0.17489233]
[1646589006480,0.00020185,39000.0,38997.0,0.17489233]
[1646589007477,0.1,39004.0,38997.0,0.17489233]
[1646589007678,0.00020185,39000.0,38997.0,0.17489233]
[1646589008380,0.00020185,39000.0,38997.0,0.16989233]
[1646589008578,0.3,39004.0,38997.0,0.16989233]
[1646589008780,0.1,39004.0,38997.0,0.16989233]
[1646589009181,0.00020179,39000.0,38997.0,0.16989233]
[1646589009833,0.164151,39003.0,38997.0,0.16989233]
[1646589010135,0.00020174,39000.0,38997.0,0.16989233]
[1646589011036,0.064151,39003.0,38997.0,0.16989233]
[1646589011234,0.00020174,39000.0,38997.0,0.16989233]
[1646589012236,0.164151,39003.0,38993.0,0.003]
[1646589012435,0.00020175,39000.0,38993.0,0.003]
[1646589013385,0.00020175,39000.0,38993.0,0.18303033]
[1646589013583,0.22831126,39001.0,38993.0,0.18303033]
[1646589013784,0.00020176,38998.0,38993.0,0.18303033]
[1646589014385,0.00020176,38998.0,38994.0,0.028037]
[1646589014586,0.00020176,38998.0,38993.0,0.18303033]
[1646589014784,0.064155,39002.0,38993.0,0.18303033]
[1646589014985,0.1,39003.0,39000.0,0.17000496]
[1646589015389,0.1,39005.0,39000.0,0.17000496]
[1646589015587,0.1,39006.0,39000.0,0.17000496]
[1646589015786,0.01281,39008.0,39000.0,0.17000496]
[1646589015988,0.31281,39009.0,39000.0,0.17000496]
[1646589016187,0.00020174,39004.0,39000.0,0.17000496]
[1646589016926,0.00020174,39004.0,39002.0,0.19623049]
[1646589017130,0.1,39008.0,39002.0,0.19623049]
[1646589017327,0.0002019,39004.0,39002.0,0.19623049]
[1646589018327,0.1,39008.0,39002.0,0.19623049]
[1646589018527,0.00020189,39005.0,39002.0,0.19623049]
[1646589019328,0.00020189,39005.0,39003.0,0.02802]
[1646589019527,0.1,39008.0,39002.0,0.19623049]
[1646589019730,0.00020189,39005.0,39002.0,0.19623049]
[1646589019928,0.00020189,39005.0,39004.0,0.028015]
[1646589020128,0.00020189,39005.0,39002.0,0.19623049]
[1646589020129,0.00020189,39005.0,39003.0,0.328016]
[1646589020331,0.00020189,39005.0,39004.0,0.028015]
[1646589020582,0.00020189,39005.0,39004.0,0.053475]
[1646589020782,0.001,39014.0,39005.0,0.00060566]
[1646589021081,0.001,39014.0,39006.0,0.028005]
[1646589021282,0.001,39014.0,39012.0,0.1862131]
[1646589021480,0.03885854,39015.0,39012.0,0.1862131]
[1646589022080,0.03885854,39015.0,39014.0,0.15575651]
[1646589022283,0.03906024,39015.0,39014.0,0.15575651]
[1646589022481,0.0002017,39015.0,39014.0,0.45575651]
[1646589023081,0.005,39019.0,39014.0,0.45575651]
[1646589023481,0.0002017,39016.0,39014.0,0.45575651]
[1646589024329,0.1,39022.0,39014.0,0.45575651]
[1646589024528,0.00020171,39017.0,39014.0,0.45575651]
[1646589024733,0.00020171,39017.0,39014.0,0.15575651]
[1646589025430,0.11402222,39023.0,39014.0,0.15575651]
[1646589025829,0.00020171,39017.0,39014.0,0.15575651]
[1646589026830,0.11402222,39023.0,39014.0,0.15575651]
[1646589026831,0.385227,39022.0,39014.0,0.15575651]
[1646589027030,0.0002017,39017.0,39014.0,0.15575651]
[1646589027832,0.1,39021.0,39012.0,0.1862131]
[1646589028279,0.00020209,39017.0,39012.0,0.1862131]
[1646589028479,0.00020209,39017.0,39010.0,0.1246]
[1646589028879,0.00020209,39017.0,39012.0,0.17093251]
[1646589029080,0.064125,39019.0,39012.0,0.17093251]
[1646589029683,0.064124,39021.0,39012.0,0.17093251]
[1646589030384,0.16412178,39022.0,39012.0,0.17093251]
[1646589030584,0.21402222,39023.0,39012.0,0.17093251]
[1646589030985,0.1,39023.0,39012.0,0.17093251]
[1646589031386,0.385227,39022.0,39012.0,0.17093251]
[1646589031589,0.385227,39021.0,39012.0,0.17093251]
[1646589031830,0.00021666,39019.0,39011.0,0.19710427]
[1646589032733,0.064122,39022.0,39011.0,0.19710427]
[1646589032933,0.00021666,39017.0,39011.0,0.49710427]
[1646589033131,0.00021666,39017.0,39011.0,0.19710427]
[1646589033531,0.00021666,39017.0,39011.0,0.49710427]
[1646589033731,0.00021666,39017.0,39011.0,0.19710427]
[1646589033931,0.064125,39020.0,39011.0,0.19710427]
[1646589034234,0.00021577,39016.0,39011.0,0.49710427]
[1646589034433,0.00021577,39016.0,39011.0,0.19710427]
[1646589034930,0.00021577,39016.0,39011.0,0.49710427]
[1646589035133,0.064125,39020.0,39011.0,0.19710427]
[1646589035435,0.00021577,39015.0,39010.0,0.1206]
[1646589035685,0.06434877,39015.0,39010.0,0.1206]
[1646589035886,0.00021577,39015.0,39010.0,0.1206]
[1646589036288,0.128266,39019.0,39010.0,0.1206]
[1646589036490,0.064135,39014.0,39010.0,0.1206]
[1646589036686,0.12848577,39014.0,39007.0,0.005]
[1646589037287,0.32382465,39014.0,39007.0,0.005]
[1646589037487,0.32360888,39014.0,39006.0,0.1793293]
[1646589037687,0.12827,39014.0,39006.0,0.1793293]
[1646589037887,0.00021584,39012.0,39006.0,0.1793293]
[1646589038289,0.00021584,39012.0,39005.0,0.18235513]
[1646589038690,0.12826357,39016.0,39005.0,0.18235513]
[1646589038889,0.00021584,39010.0,39005.0,0.18235513]
[1646589039089,0.00021584,39010.0,39006.0,0.028001]
[1646589039327,0.00021584,39010.0,39009.0,0.16823972]
[1646589039929,0.064133,39015.0,39009.0,0.16823972]
[1646589040130,0.00021584,39011.0,39009.0,0.16823972]
[1646589040329,0.00021584,39011.0,39005.0,0.18235513]
[1646589040330,0.00021584,39011.0,39008.0,0.003]
[1646589041130,0.001,39016.0,39008.0,0.003]
[1646589041337,0.00021584,39011.0,39009.0,0.19205705]
[1646589042331,0.001,39017.0,39008.0,0.004]
[1646589042532,0.00021583,39012.0,39008.0,0.004]
[1646589043675,0.3,39015.0,39007.0,0.18716878]
[1646589043880,0.00021583,39012.0,39007.0,0.18716878]
[1646589044775,0.3,39016.0,39011.0,0.18374076]
[1646589044976,0.1,39017.0,39011.0,0.18374076]
[1646589045175,0.1,39016.0,39011.0,0.18374076]
[1646589045378,0.1,39017.0,39011.0,0.18374076]
[1646589046277,0.00021582,39016.0,39011.0,0.18374076]
[1646589047131,0.1,39017.0,39011.0,0.18374076]
[1646589047532,0.00021583,39015.0,39011.0,0.18374076]
[1646589047931,0.00021583,39015.0,39012.0,0.3]
[1646589048333,0.01281,39026.0,39012.0,0.3]
[1646589048534,0.13411,39028.0,39020.0,0.18949442]
[1646589048739,0.38609004,39027.0,39020.0,0.18949442]
[1646589048936,0.56266399,39027.0,39020.0,0.18949442]
[1646589049336,0.38609004,39027.0,39020.0,0.18949442]
[1646589049535,0.01281,39030.0,39020.0,0.18949442]
[1646589049736,0.385227,39029.0,39020.0,0.18949442]
[1646589049939,0.0002158,39025.0,39020.0,0.18949442]
[1646589050338,0.0002158,39025.0,39024.0,0.20247058]
[1646589050884,0.385227,39030.0,39021.0,0.3]
[1646589051082,0.0002158,39026.0,39021.0,0.3]
[1646589051481,0.0002158,39026.0,39020.0,0.18949442]
[1646589051886,0.0002158,39026.0,39023.0,0.209138]
[1646589052084,0.1,39030.0,39018.0,0.3]
[1646589052285,0.0002158,39025.0,39018.0,0.3]
[1646589053084,0.0002158,39025.0,39023.0,0.15545135]
[1646589053285,0.385227,39029.0,39023.0,0.15545135]
[1646589053486,0.38609007,39029.0,39021.0,0.20306917]
[1646589053685,0.385227,39027.0,39021.0,0.20306917]
[1646589054086,0.385227,39025.0,39017.0,0.118]
[1646589054336,0.1,39028.0,39017.0,0.003]
[1646589054537,0.18270821,39023.0,39017.0,0.16455183]
[1646589054836,0.385227,39021.0,39017.0,0.003]
[1646589055037,0.385227,39022.0,39017.0,0.003]
[1646589055237,0.31095133,39023.0,39017.0,0.003]
[1646589055238,0.12824312,39023.0,39017.0,0.003]
[1646589055439,0.10021579,39026.0,39017.0,0.003]
[1646589055637,0.064118,39024.0,39013.0,0.4135]
[1646589055838,0.00021581,39022.0,39013.0,0.1135]
[1646589056038,0.00021581,39022.0,39015.0,0.1897]
[1646589056334,0.00021581,39022.0,39018.0,0.20434566]
[1646589056538,0.385227,39021.0,39018.0,0.20434566]
[1646589056737,0.385227,39021.0,39015.0,0.1897]
[1646589056738,0.385227,39020.0,39015.0,0.1897]
[1646589056936,0.064123,39022.0,39013.0,0.1135]
[1646589057137,0.06433881,39022.0,39013.0,0.1135]
[1646589057339,0.06433881,39022.0,39016.0,0.16646598]
[1646589057537,0.06433881,39022.0,39013.0,0.1135]
[1646589057937,0.064123,39022.0,39013.0,0.1135]
[1646589058191,0.00021581,39019.0,39013.0,0.1135]
[1646589058596,0.00021581,39019.0,39013.0,0.1035]
[1646589058792,0.00021581,39019.0,39012.0,0.18395658]
[1646589059198,0.064123,39022.0,39017.0,0.19608999]
[1646589059391,0.00021582,39017.0,39013.0,0.3]
[1646589059592,0.00021582,39017.0,39012.0,0.18395658]
[1646589059792,0.00021582,39017.0,39012.0,0.17420682]
[1646589059992,0.00021582,39017.0,39013.0,0.3]
[1646589060192,0.00021582,39017.0,39012.0,0.17420682]
[1646589060193,0.00021582,39017.0,39014.0,0.027989]
[1646589060392,0.164119,39024.0,39014.0,0.027989]
[1646589060592,0.00021582,39017.0,39013.0,0.50645346]
[1646589060892,0.00021582,39017.0,39014.0,0.027983]
[1646589061091,0.00021582,39017.0,39013.0,0.50645346]
[1646589061292,0.00021582,39017.0,39013.0,0.20645346]
[1646589061695,0.064124,39022.0,39013.0,0.20645346]
[1646589061696,0.485227,39025.0,39013.0,0.20645346]
[1646589061936,0.09953308,39025.0,39013.0,0.20645346]
[1646589062135,0.385227,39023.0,39013.0,0.20645346]
[1646589062537,0.064122,39023.0,39013.0,0.20645346]
[1646589062737,0.26125307,39023.0,39013.0,0.20645346]
[1646589062939,0.064122,39023.0,39013.0,0.20645346]
[1646589063339,0.128244,39023.0,39013.0,0.20645346]
[1646589064140,0.128244,39023.0,39020.0,0.19241695]
[1646589064342,0.385227,39022.0,39020.0,0.19241695]
[1646589064742,0.1,39021.0,39020.0,0.19241695]
[1646589065794,0.00011243,39022.0,39020.0,0.19241695]
[1646589065994,0.385227,39021.0,39020.0,0.19241695]
[1646589066196,0.1,39021.0,39020.0,0.19241695]
[1646589066394,0.1,39021.0,39020.0,0.39944795]
[1646589066595,0.485227,39021.0,39020.0,0.19241695]
[1646589066795,0.1,39021.0,39020.0,0.19241695]
[1646589066998,0.485227,39021.0,39020.0,0.19241695]
[1646589067195,0.1,39021.0,39020.0,0.19241695]
[1646589067599,0.064119,39025.0,39020.0,0.19241695]
[1646589067812,0.00021913,39022.0,39020.0,0.19241695]
[1646589068399,0.00021913,39022.0,39010.0,0.3]
[1646589068801,0.064122,39023.0,39010.0,0.3]
[1646589069202,0.00021914,39019.0,39011.0,0.027981]
[1646589069431,0.00021914,39019.0,39017.0,0.20636036]
[1646589070031,0.064119,39025.0,39017.0,0.20636036]
[1646589070232,0.00021914,39020.0,39017.0,0.20636036]
[1646589071234,0.064122,39022.0,39017.0,0.20636036]
[1646589071538,0.00020725,39020.0,39017.0,0.20636036]
[1646589072135,0.00020725,39020.0,39019.0,0.19601311]
[1646589072335,0.1,39024.0,39019.0,0.19601311]
[1646589072534,0.385227,39023.0,39017.0,0.20636036]
[1646589072732,0.00020725,39020.0,39017.0,0.20636036]
[1646589073693,0.1,39022.0,39017.0,0.20636036]
[1646589073890,0.00020725,39020.0,39017.0,0.20636036]
[1646589074491,0.00020725,39020.0,39018.0,0.20505428]
[1646589074890,0.385227,39027.0,39018.0,0.20505428]
[1646589075091,0.0002011,39021.0,39018.0,0.20505428]
[1646589077238,0.004,39027.0,39018.0,0.20505428]
[1646589077437,0.0002011,39021.0,39018.0,0.20505428]
[1646589078540,0.001,39022.0,39018.0,0.20505428]
[1646589078737,0.00021116,39021.0,39018.0,0.20505428]
[1646589079740,0.34261127,39026.0,39018.0,0.20505428]
[1646589080037,0.00021116,39021.0,39018.0,0.20505428]
[1646589080881,0.001,39022.0,39018.0,0.20505428]
[1646589081083,0.00021116,39021.0,39018.0,0.20505428]
[1646589081982,0.22823411,39026.0,39018.0,0.20505428]
[1646589082385,9.724e-05,39021.0,39018.0,0.20505428]
[1646589083182,0.001,39022.0,39018.0,0.20505428]
[1646589083582,9.724e-05,39021.0,39018.0,0.20505428]
[1646589084183,9.724e-05,39021.0,39018.0,0.20494094]
[1646589084430,0.002,39022.0,39018.0,0.20494094]
[1646589084630,9.724e-05,39021.0,39018.0,0.20494094]
[1646589085631,0.002,39022.0,39018.0,0.20494094]
[1646589085833,0.0002204,39021.0,39018.0,0.20494094]
[1646589086931,0.002,39022.0,39018.0,0.20494094]
[1646589087133,0.0002204,39021.0,39018.0,0.20494094]
[1646589087535,0.0002204,39021.0,39018.0,0.50494094]
[1646589087732,0.0002204,39021.0,39018.0,0.20494094]
[1646589087933,0.0002204,39021.0,39018.0,0.50494094]
[1646589088185,0.1199,39029.0,39018.0,0.50494094]
[1646589088186,0.30135532,39026.0,39018.0,0.50494094]
[1646589088389,0.0002204,39021.0,39018.0,0.50494094]
[1646589088585,0.0002204,39021.0,39020.0,0.06409911]
[1646589088785,0.30135532,39026.0,39020.0,0.06409911]
[1646589088786,0.30135532,39026.0,39021.0,1.1004408]
[1646589088983,0.30135532,39026.0,39022.0,0.327968]
[1646589089184,0.30135532,39026.0,39022.0,0.353428]
[1646589089985,0.30314893,39036.0,39024.0,0.02546]
[1646589090188,0.30314893,39036.0,39034.0,0.20235994]
[1646589090385,0.30314893,39036.0,39035.0,0.027938]
[1646589090587,0.30314893,39036.0,39034.0,0.20235994]
[1646589090985,0.30314893,39036.0,39035.0,0.19656479]
[1646589091186,0.29814893,39036.0,39035.0,0.22450179]
[1646589091391,0.1218,39042.0,39035.0,0.22450179]
[1646589091588,0.30874527,39043.0,39035.0,0.19656479]
[1646589091846,0.30374527,39043.0,39035.0,0.19656479]
[1646589092247,0.29094527,39043.0,39035.0,0.19656479]
[1646589093246,0.00022321,39041.0,39035.0,0.19656479]
[1646589093647,0.00022321,39041.0,39035.0,0.49656479]
[1646589094149,0.39094527,39043.0,39035.0,0.49656479]
[1646589094348,0.39194527,39043.0,39035.0,0.19656479]
[1646589094549,0.00023176,39040.0,39035.0,0.19656479]
[1646589095451,0.39194527,39043.0,39035.0,0.19656479]
[1646589095452,0.00023176,39039.0,39035.0,0.19656479]
[1646589096083,0.00023176,39039.0,39035.0,0.49656479]
[1646589096284,0.00023176,39039.0,39035.0,0.19656479]
[1646589096484,0.002,39040.0,39035.0,0.19656479]
[1646589096684,0.002,39040.0,39035.0,0.49656479]
[1646589096885,0.00023176,39039.0,39035.0,0.19656479]
[1646589097086,0.00023176,39039.0,39034.0,0.20235994]
[1646589097284,0.00023176,39039.0,39031.0,0.3]
[1646589097684,0.39094527,39043.0,39031.0,0.3]
[1646589098089,0.00023176,39037.0,39035.0,0.20961912]
[1646589098685,0.00023176,39037.0,39036.0,0.027935]
[1646589098885,0.39094527,39043.0,39035.0,0.20961912]
[1646589099337,0.00023176,39038.0,39035.0,0.20961912]
[1646589100034,0.1,39043.0,39035.0,0.20961912]
[1646589100231,0.05,39044.0,39035.0,0.20961912]
[1646589100435,0.00023176,39038.0,39036.0,0.027935]
[1646589100635,0.00023176,39038.0,39036.0,0.027934]
[1646589100831,0.00023176,39038.0,39035.0,0.20961912]
[1646589101031,0.00023176,39038.0,39036.0,0.027933]
[1646589101232,0.00023176,39038.0,39036.0,0.327933]
[1646589101433,0.051,39044.0,39036.0,0.3]
[1646589101634,0.00022399,39038.0,39036.0,0.3]
[1646589101831,0.00022399,39038.0,39037.0,0.027928]
[1646589102632,0.001,39041.0,39039.0,0.16854577]
[1646589103685,0.05,39044.0,39039.0,0.16854577]
[1646589103885,0.00022398,39042.0,39039.0,0.16854577]
[1646589104886,0.05,39044.0,39040.0,0.20032301]
[1646589105087,0.00021587,39042.0,39040.0,0.20032301]
[1646589106086,0.05,39044.0,39040.0,0.20032301]
[1646589106287,0.00021587,39043.0,39040.0,0.20032301]
[1646589106487,0.00221587,39043.0,39040.0,0.20032301]
[1646589107339,0.002,39043.0,39040.0,0.20032301]
[1646589107539,0.00221587,39043.0,39040.0,0.20032301]
[1646589107741,0.00021587,39043.0,39039.0,0.16854577]
[1646589108442,0.00014903,39043.0,39039.0,0.16854577]
[1646589108639,0.05,39044.0,39039.0,0.16854577]
[1646589108840,0.00021625,39043.0,39039.0,0.16854577]
[1646589109040,0.00021625,39043.0,39042.0,0.15760047]
[1646589109441,0.00021625,39043.0,39039.0,0.16854577]
[1646589109742,0.05,39044.0,39039.0,0.16854577]
[1646589111592,0.05,39044.0,39041.0,0.17732756]
[1646589111994,0.0492,39044.0,39041.0,0.17732756]
[1646589112396,0.0492,39044.0,39039.0,0.16854577]
[1646589112397,0.04943174,39044.0,39039.0,0.16854577]
[1646589113395,0.0492,39044.0,39041.0,0.20438441]
[1646589113598,0.00023174,39043.0,39041.0,0.20438441]
[1646589114542,0.0492,39044.0,39041.0,0.20438441]
[1646589114740,0.04943174,39044.0,39041.0,0.20438441]
[1646589115641,0.0492,39044.0,39041.0,0.20438441]
[1646589115842,0.0492,39044.0,39042.0,0.027925]
[1646589116145,0.0492,39044.0,39042.0,0.327925]
[1646589116146,0.04943174,39044.0,39042.0,0.327925]
[1646589116341,0.04943174,39044.0,39042.0,0.027925]
[1646589116942,0.04893801,39044.0,39042.0,0.027925]
[1646589117142,0.04893801,39044.0,39042.0,0.327925]
[1646589120320,0.04893801,39044.0,39043.0,0.027918]
[1646589121020,0.04893801,39044.0,39042.0,0.3]
[1646589122047,0.04893801,39044.0,39041.0,0.26845141]
[1646589122245,0.04893801,39044.0,39042.0,0.02792]
[1646589122446,0.04893801,39044.0,39043.0,0.027918]
[1646589122643,0.04893801,39044.0,39041.0,0.20438441]
[1646589122644,0.04893801,39044.0,39039.0,0.16854577]
[1646589122843,0.04893801,39044.0,39040.0,0.02792]
[1646589123642,0.04893801,39044.0,39041.0,0.18366531]
[1646589123844,0.04893801,39044.0,39042.0,0.02792]
[1646589124443,0.04914682,39044.0,39042.0,0.02792]
[1646589125043,0.04914682,39044.0,39041.0,0.18366531]
[1646589125244,0.04914682,39044.0,39042.0,0.02792]
[1646589125245,0.04893801,39044.0,39042.0,0.02792]
[1646589125444,0.04893801,39044.0,39041.0,0.18366531]
[1646589126091,0.04893801,39044.0,39042.0,0.02792]
[1646589126495,0.04893801,39044.0,39042.0,0.027919]
[1646589126692,0.04893801,39044.0,39041.0,0.18366531]
[1646589127291,0.04893801,39044.0,39037.0,0.004]
[1646589127492,0.385227,39043.0,39037.0,0.004]
[1646589127891,0.06409097,39043.0,39031.0,0.00222039]
[1646589128093,9.771e-05,39042.0,39030.0,0.3]
[1646589128291,9.771e-05,39042.0,39034.0,0.4225743]
[1646589128592,9.771e-05,39042.0,39034.0,0.4235743]
[1646589128995,0.164091,39043.0,39034.0,0.4235743]
[1646589129193,9.771e-05,39040.0,39034.0,0.21036876]
[1646589129639,9.771e-05,39040.0,39034.0,0.001]
[1646589129840,9.771e-05,39040.0,39023.0,0.00222088]
[1646589129841,0.385227,39039.0,39023.0,0.00222088]
[1646589130041,0.99255737,39038.0,39023.0,0.00222088]
[1646589130241,0.16520608,39032.0,39025.0,0.20183259]
[1646589130441,0.385227,39031.0,39021.0,0.3233408]
[1646589130642,0.16520608,39032.0,39021.0,0.3233408]
[1646589130644,0.385227,39030.0,39021.0,0.3233408]
[1646589130841,0.06411418,39028.0,39021.0,0.3233408]
[1646589131041,0.06411418,39028.0,39021.0,0.1233408]
[1646589131239,0.12822918,39028.0,39021.0,0.0004408]
[1646589132441,0.385227,39029.0,39023.0,0.19447828]
[1646589132640,0.06410895,39030.0,39021.0,0.0004408]
[1646589132841,0.215408,39031.0,39021.0,0.0004408]
[1646589133790,0.215408,39031.0,39022.0,0.20231284]
[1646589133990,0.385227,39030.0,39021.0,0.0004408]
[1646589134194,0.215408,39031.0,39021.0,0.0004408]
[1646589134389,0.1,39029.0,39021.0,0.0004408]
[1646589134589,0.1,39029.0,39021.0,0.0044408]
[1646589135393,0.215408,39031.0,39021.0,0.0044408]
[1646589135592,0.385227,39029.0,39021.0,0.0044408]
[1646589135792,0.215408,39031.0,39021.0,0.0044408]
[1646589135793,0.064119,39026.0,39021.0,0.0044408]
[1646589136099,0.385227,39025.0,39021.0,0.0044408]
[1646589136393,0.385227,39025.0,39021.0,0.0004408]
[1646589136698,0.385227,39023.0,39021.0,0.0004408]
[1646589136968,0.21182843,39022.0,39021.0,0.0004408]
[1646589137168,0.70731928,39022.0,39021.0,0.0004408]
[1646589138368,0.99315512,39022.0,39021.0,0.0004408]
[1646589138969,1.07126648,39022.0,39021.0,0.0004408]
[1646589140169,1.85286648,39022.0,39021.0,0.0004408]
[1646589140599,2.19529248,39022.0,39021.0,0.0004408]
[1646589141701,2.38565534,39022.0,39021.0,0.00032477]
[1646589144002,1.07126648,39022.0,39021.0,0.00032477]
[1646589144203,0.83517284,39022.0,39021.0,0.00032477]
[1646589144465,0.4513,39022.0,39021.0,0.00032477]
[1646589144662,0.836527,39022.0,39021.0,0.00032477]
[1646589144863,0.1513,39022.0,39021.0,0.00032477]
[1646589145164,0.536527,39022.0,39021.0,0.00032477]
[1646589145665,0.1976,39025.0,39021.0,0.00032477]
[1646589145860,0.1225,39026.0,39021.0,0.00032477]
[1646589146062,0.007,39028.0,39021.0,0.00032477]
[1646589146463,0.007,39028.0,39023.0,0.19303423]
[1646589146464,0.011,39028.0,39023.0,0.19303423]
[1646589147063,0.011,39028.0,39024.0,0.027969]
[1646589147262,0.011,39028.0,39025.0,0.027961]
[1646589147463,0.011,39028.0,39023.0,0.19303423]
[1646589147665,0.011,39028.0,39026.0,0.19663083]
[1646589147863,0.3,39036.0,39026.0,0.19663083]
[1646589148100,0.22119027,39038.0,39026.0,0.19663083]
[1646589148103,0.1219,39038.0,39026.0,0.19663083]
[1646589148295,0.1219,39038.0,39027.0,0.027951]
[1646589148495,0.010262,39042.0,39028.0,0.064087]
[1646589148698,0.20163814,39043.0,39036.0,0.20320802]
[1646589148895,0.14823324,39044.0,39037.0,0.16642523]
[1646589149095,0.385227,39043.0,39036.0,0.20320802]
[1646589149294,0.04893801,39044.0,39036.0,0.20320802]
[1646589149495,0.385227,39043.0,39036.0,0.20320802]
[1646589149799,0.064094,39041.0,39036.0,0.20320802]
[1646589150094,0.064094,39041.0,39029.0,0.1817]
[1646589150095,0.385227,39039.0,39029.0,0.1817]
[1646589150295,0.364094,39041.0,39030.0,0.16436793]
[1646589150495,0.064094,39041.0,39031.0,0.001]
[1646589150694,0.685227,39040.0,39031.0,0.001]
[1646589150900,0.385227,39035.0,39031.0,0.001]
[1646589151095,0.57101718,39035.0,39031.0,0.001]
[1646589151296,0.385227,39034.0,39031.0,0.001]
[1646589151596,0.3,39034.0,39031.0,0.001]
[1646589151839,0.24989218,39035.0,39027.0,0.00222064]
[1646589151840,0.064102,39035.0,39027.0,0.00222064]
[1646589152139,0.064102,39035.0,39024.0,0.18203869]
[1646589152140,0.0002245,39034.0,39024.0,0.18203869]
[1646589152541,0.0002245,39034.0,39024.0,0.18703869]
[1646589152740,0.0002245,39034.0,39028.0,0.19379821]
[1646589152940,0.3,39037.0,39028.0,0.19379821]
[1646589153240,0.00022449,39034.0,39028.0,0.19379821]
[1646589154342,0.364098,39037.0,39028.0,0.19379821]
[1646589154542,0.00021551,39034.0,39029.0,0.027952]
[1646589154740,0.00021551,39034.0,39029.0,0.027949]
[1646589155142,0.00021551,39034.0,39028.0,0.19379821]
[1646589155341,0.36409911,39037.0,39028.0,0.19379821]
[1646589155591,0.00021551,39034.0,39028.0,0.19379821]
[1646589155791,0.29891948,39037.0,39029.0,0.027949]
[1646589155991,0.46495724,39039.0,39028.0,0.19379821]
[1646589156193,0.1,39037.0,39030.0,0.1799175]
[1646589156391,0.40086193,39039.0,39030.0,0.1799175]
[1646589156690,0.4,39039.0,39030.0,0.1799175]
[1646589156891,0.4,39039.0,39034.0,0.18501409]
[1646589157091,0.1,39039.0,39034.0,0.18501409]
[1646589157292,0.364091,39041.0,39034.0,0.18501409]
[1646589157293,0.1,39040.0,39034.0,0.18501409]
[1646589157495,0.1,39040.0,39030.0,0.1799175]
[1646589157693,0.1128,39040.0,39030.0,0.1799175]
[1646589157892,0.0128,39041.0,39030.0,0.1799175]
[1646589158290,0.00021611,39039.0,39030.0,0.1799175]
[1646589158490,0.00021611,39039.0,39034.0,0.17403605]
[1646589158991,0.0128,39041.0,39034.0,0.17403605]
[1646589159191,0.00021611,39038.0,39034.0,0.17403605]
[1646589160239,0.1,39039.0,39034.0,0.17403605]
[1646589160437,0.00021611,39038.0,39034.0,0.17403605]
[1646589161338,0.1,39042.0,39034.0,0.17403605]
[1646589161537,0.00021606,39038.0,39036.0,0.21250021]
[1646589162542,0.1,39042.0,39036.0,0.21250021]
[1646589162940,0.00020036,39039.0,39036.0,0.21250021]
[1646589163804,0.1,39040.0,39036.0,0.21250021]
[1646589164008,0.00020036,39039.0,39036.0,0.21250021]
[1646589165107,0.106,39042.0,39036.0,0.21250021]
[1646589165108,0.106,39042.0,39040.0,0.21325264]
[1646589165304,0.00020145,39039.0,39036.0,0.21250021]
[1646589166104,0.006,39042.0,39036.0,0.21250021]
[1646589166306,0.106,39042.0,39037.0,0.19081096]
[1646589166511,0.00020145,39039.0,39037.0,0.19081096]
[1646589167362,0.106,39042.0,39037.0,0.19081096]
[1646589167562,0.00020303,39040.0,39037.0,0.19081096]
[1646589168660,0.14893801,39044.0,39037.0,0.19081096]
[1646589168859,0.00020295,39040.0,39037.0,0.19081096]
[1646589169060,0.00020295,39040.0,39038.0,0.027926]
[1646589169860,0.04893801,39044.0,39038.0,0.027926]
[1646589169861,0.04893801,39044.0,39042.0,0.17688458]
[1646589170363,0.04893801,39044.0,39043.0,0.027918]
[1646589170591,0.04893801,39044.0,39043.0,0.027917]
[1646589171091,0.04893801,39044.0,39043.0,0.17358255]
[1646589171491,0.04893801,39044.0,39042.0,0.17688458]
[1646589172093,0.04893801,39044.0,39034.0,0.128145]
[1646589172293,0.04893801,39044.0,39035.0,0.027925]
[1646589172496,0.04893801,39044.0,39036.0,0.1576229]
[1646589172694,0.04893801,39044.0,39038.0,0.027926]
[1646589173495,0.04893801,39044.0,39039.0,0.18593153]